Cogmind - Beta 14 *** ADVENTURER MODE // 2024.09.23 @ 21:39:41 Player: Knightshade Result: Destroyed by Y-54 Guardian with Gatling Laser Performance ------------- Evolutions (0) 0 Regions Visited (3) 600 Robots Destroyed (32) 160 Value Destroyed (802) 802 Prototype IDs (5) 100 Alien Tech Used (0) 0 Bonus (0) 0 TOTAL SCORE: 1662 Bonus ------- None Cogmind --------- Core Integrity 0/250 Matter 227/300 Energy 280/280 System Corruption 0% Temperature Danger (400) Movement Rolling (210) Ox10 Location -7/Recycling Parts ------- > --- POWER (1) -------- Heavy Ion Engine > --- PROPULSION (2) --- Subdweller Monowheel > --- UTILITY (2) ------ Humpback > --- WEAPON (2) ------- Beam Cannon Battle Cannon > --- INVENTORY (35) --- Ion Engine Medium Storage Unit Signal Interpreter Hardened Light Armor Plating Hardened Light Armor Plating Hardened Light Armor Plating Makeshift Light Armor Plating Trap Extractor (4/4 Shrapnel) Riot Gun Subdweller Machine Gun Light Cannon Subdweller Shrapnel Launcher Datajack Multitool Makeshift Sword SUBCON Basin (Full) Peak State ------------ > --- POWER ------------ Heavy Ion Engine > --- PROPULSION ------- Wheel Subdweller Monowheel > --- UTILITY ---------- Humpback > --- WEAPON ----------- Beam Cannon Subdweller Shrapnel Launcher > --- INVENTORY -------- Ion Engine Medium Storage Unit Signal Interpreter Hardened Light Armor Plating Hardened Light Armor Plating Hardened Light Armor Plating Makeshift Light Armor Plating Trap Extractor Riot Gun Subdweller Machine Gun Light Cannon Battle Cannon Datajack Multitool Makeshift Sword SUBCON Basin [Rating: 32] Favorites ----------- Power Heavy Ion Engine Engine Heavy Ion Engine Propulsion Wheel Treads Light Treads Wheel Wheel Utility Huge Storage Unit Device Trap Extractor Storage Huge Storage Unit Processor Visual Processing Unit Protection Hardened Light Armor Plating Weapon Light Cannon Energy Gun Small Laser Energy Cannon Beam Cannon Ballistic Gun Subdweller Machine Gun Ballistic Cannon Light Cannon Launcher Subdweller Shrapnel Launcher Slashing Weapon Makeshift Sword Special Melee Weapon Datajack Build | -11 -10 -10 -7 ------- Run | Yrd Mat Sub Rec Slots Evolved . | . . . . Power . | . . . . Propulsion . | . . . . Utility . | . . . . Weapon . | . . . . Parts Attached 43 | 6 16 20 1 Power 4 | 1 3 . . Engine 4 | 1 3 . . Core . | . . . . Reactor . | . . . . Propulsion 10 | 2 3 5 . Treads 3 | 2 . 1 . Leg . | . . . . Wheel 7 | . 3 4 . Hover . | . . . . Flight . | . . . . Utility 10 | 1 5 4 . Device 2 | . 1 1 . Storage 5 | 1 3 1 . Processor 1 | . 1 . . Hackware . | . . . . Protection 2 | . . 2 . Artifact . | . . . . Weapon 19 | 2 5 11 1 Energy Gun 2 | 2 . . . Energy Cannon 4 | . 1 3 . Ballistic Gun 1 | . . 1 . Ballistic Cannon 7 | . 3 3 1 Launcher 2 | . . 2 . Special Weapon . | . . . . Impact Weapon . | . . . . Slashing Weapon 1 | . . 1 . Piercing Weapon . | . . . . Special Melee Weapon 2 | . 1 1 . Unidentified Prototypes 1 | . 1 . . Parts Lost 6 | . . 5 1 Power . | . . . . Propulsion 4 | . . 3 1 Utility . | . . . . Weapon 2 | . . 2 . Highest Loss Streak 1 | . . 1 1 To Critical Strikes . | . . . . Average Slot Usage (%) 96 | . 97 96 83 Engine 13 | . 13 14 14 Treads 6 | . 16 3 . Wheel 21 | . 11 24 26 Device 1 | . 2 1 . Storage 13 | . 14 13 14 Processor 1 | . 9 . . Protection 7 | . . 9 . Energy Gun 1 | . 9 . . Energy Cannon 8 | . . 10 14 Ballistic Gun 1 | . . 1 . Ballistic Cannon 11 | . 13 11 4 Launcher 1 | . . 2 9 Special Melee Weapon 1 | . 4 1 . Peak Build Rating 32 | 6 12 32 32 Average Rating 15 | 4 8 17 31 On Entrance 12 | . 6 11 32 Naked Turns . | . . . . Heaviest Build 219 | 10 96 219 219 Greatest Support 40 | 40 40 36 30 Greatest Overweight (x) 10 | . 5 10 7 Average Overweight (x) 3 | . . 4 7 Largest Inventory Capacity 35 | 8 25 35 35 Average Capacity 24 | 7 14 26 35 Most Carried 31 | 5 15 31 30 Average Carried 19 | 3 9 21 30 Final Capacity 35 | 8 25 35 35 Final Carried 30 | 4 14 30 30 Class Distribution -------------------- 83% | Mutant 16% | Hauler-Mutant Dominant Class ---------------- Mutant | -10/Materials Mutant | -10/Subcaves Hauler-Mutant | -7/Recycling Resources | -11 -10 -10 -7 ----------- Run | Yrd Mat Sub Rec Matter Collected 1274 | 243 157 874 . Remotely . | . . . . Salvage Created 642 | . 156 486 . Parts 56 | . 17 39 . Haulers Intercepted . | . . . . Recyclers Shooed . | . . . . Parts Field Recycled . | . . . . Retrieved Matter . | . . . . Parts Self-Destructed 19 | . . 19 . Prevented . | . . . . Kills | -11 -10 -10 -7 ------- Run | Yrd Mat Sub Rec Combat Hostiles Destroyed 29 | . 9 20 . Guns 9 | . 6 3 . Cannons 19 | . 3 16 . AOE 1 | . . 1 . Classes Destroyed 6 | . 2 4 . Turret 1 | . . 1 . Watcher 2 | . 2 . . Swarmer 14 | . 9 5 . Artisan 1 | . . 1 . Cobbler 1 | . . 1 . Subdweller 15 | . . 15 . Best Kill Streak 6 | . 6 4 . Combat Bots Only 6 | . 6 4 . Max Kills in Single Turn 1 | . 1 1 . Gunslinging . | . . . . Exploded 1 | . . 1 . Melee . | . . . . Uniques/NPCs Destroyed . | . . . . Combat | -11 -10 -10 -7 -------- Run | Yrd Mat Sub Rec Hostile Shots Fired 207 | . 27 123 57 Missed 75 | . 6 44 25 Damage Taken 1366 | . 115 1065 186 Core 253 | . 24 200 29 Absorbed by Shields . | . . . . Ignored by Resistances 401 | . 42 296 63 Core Remaining (%) 100 | 100 . . . Volleys Fired 122 | . 30 84 8 Largest 2 | . 2 2 2 Hottest 119 | . 80 119 99 Shots Fired 231 | . 60 155 16 Gun 50 | . 38 12 . Cannon 172 | . 22 134 16 Launcher 9 | . . 9 . Special . | . . . . Kinetic 141 | . 22 111 8 Thermal 90 | . 38 44 8 Explosive . | . . . . Electromagnetic . | . . . . Robot Hit Streak 42 | . 8 42 36 Robot Miss Streak 3 | . 3 1 . Penetration Max . | . . . . Secondary Targets . | . . . . Shots Hit Robots 171 | . 35 120 16 Core Hits 51 | . 14 35 2 Critical Kills . | . . . . Critical Parts Destroyed . | . . . . Critical Strikes 5 | . 2 3 . Blast 5 | . 2 3 . Melee Attacks 3 | . 2 1 . Impact . | . . . . Slashing 1 | . . 1 . Piercing . | . . . . Sneak Attacks 3 | . 2 1 . Combat Hostiles . | . . . . Follow-up Attacks . | . . . . Damage Inflicted 3117 | . 423 2396 298 Guns 541 | . 304 237 . Cannons 2452 | . 119 2035 298 Explosions 58 | . . 58 . Melee 66 | . . 66 . Ramming . | . . . . Kinetic 1930 | . 119 1654 157 Thermal 1121 | . 304 676 141 Explosive . | . . . . Electromagnetic . | . . . . Impact . | . . . . Slashing 66 | . . 66 . Piercing . | . . . . Highest Corruption . | . . . . Average Corruption . | . . . . Corruption Purged . | . . . . Corruption Blocked . | . . . . Overload Shots . | . . . . Overflow Damage 28 | . . 28 . Projectiles 28 | . . 28 . Explosions . | . . . . Melee . | . . . . Knockbacks 14 | . 2 12 . Impact . | . . . . Kinetic 13 | . 2 11 . Secondary 1 | . . 1 . Self-Inflicted Damage 39 | . . 39 . Shots 3 | . . 3 . Rammed . | . . . . Targets Rammed . | . . . . Kicked . | . . . . Crushed . | . . . . Highest Temperature 388 | . 216 238 388 Average Temperature 65 | . 57 40 204 Received Heat Transfer 531 | . . 453 78 Siege Activations . | . . . . Robots Corrupted . | . . . . Combat Hostiles . | . . . . Parts Fried . | . . . . Impact Corruptions . | . . . . Robots Melted . | . . . . Combat Hostiles . | . . . . Parts Melted . | . . . . Heat Transferred 1970 | . 675 999 296 Parts Sabotaged . | . . . . Parts Stolen . | . . . . Parts Stripped . | . . . . Power Chain Reactions . | . . . . Alert | -11 -10 -10 -7 ------- Run | Yrd Mat Sub Rec Peak Influence 166 | . 166 . . Initial . | . . . . Average 28 | . 32 . . Maximum Alert Level . | . . . . Low Security (%) 100 | 100 100 . 100 Level 1 . | . . . . Level 2 . | . . . . Level 3 . | . . . . Level 4 . | . . . . Level 5 . | . . . . High Security . | . . . . Max Security . | . . . . Squads Dispatched . | . . . . Investigation . | . . . . Extermination . | . . . . Reinforcement . | . . . . Assault . | . . . . Garrison . | . . . . Intercept . | . . . . Searches Triggered . | . . . . Construction Impeded . | . . . . Haulers Reinforced . | . . . . Active Scanning Responses . | . . . . Cargo Convoy Interrupts . | . . . . Stealth | -11 -10 -10 -7 --------- Run | Yrd Mat Sub Rec Distress Signals . | . . . . Communications Jammed . | . . . . Distress Signals . | . . . . Times Spotted 45 | . 17 27 1 Peak Tracking Total 6 | . 5 6 1 Tactical Retreats 8 | . 2 6 . Traps | -11 -10 -10 -7 ------- Run | Yrd Mat Sub Rec Traps Triggered 2 | . 1 1 . Indirectly . | . . . . Trap Hack Attempts 30 | . 22 8 . Triggered . | . . . . Disarmed 4 | . 4 . . Reprogrammed 7 | . 3 4 . Reused 2 | . 2 . . Traps Extracted 5 | . 1 4 . Installed . | . . . . Triggered 2 | . 2 . . Most Traps Carried 4 | . 1 4 4 Machines | -11 -10 -10 -7 ---------- Run | Yrd Mat Sub Rec Machines Disabled 2 | . . 2 . Max in Single Turn 1 | . . 1 . Machines Repaired . | . . . . Machines Dismantled . | . . . . Machines Sabotaged . | . . . . Overloaded Fab Kills . | . . . . Hacking | -11 -10 -10 -7 --------- Run | Yrd Mat Sub Rec Machines Accessed 12 | . 9 3 . Terminals 7 | . 7 . . Fabricators . | . . . . Repair Stations 1 | . 1 . . Recycling Units 1 | . 1 . . Scanalyzers . | . . . . Garrison Access . | . . . . Total Hacks 47 | . 41 6 . Successful 31 | . 25 6 . Failed 16 | . 16 . . Catastrophic . | . . . . Database Lockouts . | . . . . Manual 29 | . 29 . . Terminals 36 | . 36 . . Fabricators . | . . . . Repair Stations 3 | . 3 . . Recycling Units 2 | . 2 . . Scanalyzers . | . . . . Garrison Access . | . . . . Terminal Hacks 21 | . 15 6 . Record 6 | . 2 4 . Part Schematic 1 | . 1 . . Prototype ID Bank 2 | . 2 . . Open Door 1 | . . 1 . Level Access Points 1 | . 1 . . Branch Access Points 1 | . 1 . . Emergency Access Points 1 | . 1 . . Terminal Index 1 | . 1 . . Locate Traps 1 | . 1 . . Disarm Traps 1 | . 1 . . Hauler Manifests 1 | . 1 . . Registered Components 1 | . 1 . . Zone Layout 2 | . 2 . . Release Object 1 | . . 1 . Fabricator Hacks . | . . . . Repair Station Hacks 2 | . 2 . . Scan Component 1 | . 1 . . Repair 1 | . 1 . . Recycling Unit Hacks 2 | . 2 . . Report Inventory 1 | . 1 . . Retrieve Components 1 | . 1 . . Scanalyzer . | . . . . Garrison Access Hacks . | . . . . Unauthorized Hacks 6 | . 6 . . Terminals 6 | . 6 . . Botnet 6 | . 6 . . Fabricators . | . . . . Repair Stations . | . . . . Recycling Units . | . . . . Scanalyzers . | . . . . Garrison Access . | . . . . Data Cores Recovered . | . . . . Used . | . . . . Hacking Detections 8 | . 8 . . Full Trace Events . | . . . . Feedback Events . | . . . . Feedback Blocked . | . . . . Robot Schematics Acquired . | . . . . Robots Built . | . . . . Authchips . | . . . . Time . | . . . . Total Robot Build Rating . | . . . . Part Schematics Acquired 1 | . 1 . . Parts Built . | . . . . Authchips . | . . . . Time . | . . . . Total Part Build Rating . | . . . . Parts Repaired 1 | . 1 . . Time 18 | . 18 . . Parts Recycled . | . . . . Recycled Matter . | . . . . Retrieved Matter . | . . . . Retrieved Components 9 | . 9 . . Parts Scanalyzed . | . . . . Part Schematics Acquired . | . . . . Parts Damaged . | . . . . Bothacking | -11 -10 -10 -7 ------------ Run | Yrd Mat Sub Rec Used RIF Installer . | . . . . Robots Hacked 1 | . 1 . . Non-combat 1 | . 1 . . Combat . | . . . . Robot Hacks Applied 1 | . 1 . . parse_system 1 | . 1 . . Relay Couplers Released . | . . . . Fabnet Peak Effective % . | . . . . Robots Rewired . | . . . . Allies Hacked . | . . . . Hacks Repelled . | . . . . Allies | -11 -10 -10 -7 -------- Run | Yrd Mat Sub Rec Total Allies . | . . . . Largest Group . | . . . . Highest-Rated Group . | . . . . Highest-Rated Ally . | . . . . Total Orders . | . . . . Ally Attacks . | . . . . Total Damage . | . . . . Kills . | . . . . Allies Corrupted . | . . . . Allies Melted . | . . . . Intel | -11 -10 -10 -7 ------- Run | Yrd Mat Sub Rec Robot Analysis Total . | . . . . Derelict Logs Recovered 1 | . . 1 . Drone Launches . | . . . . Drone Recoveries . | . . . . Exploration | -11 -10 -10 -7 ------------- Run | Yrd Mat Sub Rec Turns Passed 6180 | 84 1322 4679 95 Spaces Moved 3325 | 52 719 2515 39 Core 13 | 13 . . . Treads 438 | 39 399 . . Legs . | . . . . Wheels 2874 | . 320 2515 39 Hover . | . . . . Flight . | . . . . Fastest Speed 50 | 50 100 80 179 Average Speed 155 | 132 145 159 179 Slowest Speed 230 | 160 175 230 179 Overloaded Moves . | . . . . Propulsion Burnouts . | . . . . Robots Hopped . | . . . . Cave-ins Triggered . | . . . . Exploration Rate (%) 50 | 4 96 96 7 Regions Visited 3 Branch Regions 2 Pre-discovered Areas 2 | . . 2 . Known Exits Taken . | . . . . Unknown Exits Taken 3 | 1 1 1 . Scrap Searched 12 | . . 12 . Spaces Dug 34 | . . 34 . Terrain Destroyed 111 | . . 111 . Melee . | . . . . Projectile . | . . . . AOE 111 | . . 111 . Terrain Rammed . | . . . . Walls Destroyed . | . . . . Machines Disabled . | . . . . Actions | -11 -10 -10 -7 --------- Run | Yrd Mat Sub Rec Total 4084 | 67 931 3038 48 Wait 478 | . 120 358 . Move 3322 | 51 718 2514 39 Hop . | . . . . Pick Up 62 | 10 18 34 . Fast Attach . | . . . . Attach 15 | 6 3 6 . Detach . | . . . . Swap 28 | . 13 14 1 Drop 24 | . 5 19 . Fire 122 | . 30 84 8 Melee 3 | . 2 1 . Ram . | . . . . Kick . | . . . . Crush . | . . . . Escape Stasis . | . . . . Rewire . | . . . . Trap 30 | . 22 8 . Miscellaneous . | . . . . Route ------- -11/Scrapyard -10/Materials (discovered 5 exits: *Mat x3 / *Min / *Sub) -10/Subcaves (discovered 3 exits: [*Mat x2] / [*Rec]) -7/Recycling History --------- Turn | Location | Event 31 | -11/Scrapyard | Discovered new exit (range 16) 85 | -11/Scrapyard | Entered Materials 290 | -10/Materials | Discovered new exit (range 18) 318 | -10/Materials | Build established: Mutant 422 | -10/Materials | Identified exit to Mines 425 | -10/Materials | Discovered new exit (range 17) 768 | -10/Materials | Discovered new exit (range 9) 1024 | -10/Materials | Repaired Broken Com. Wheel 1066 | -10/Materials | Identified exit to Materials 1407 | -10/Materials | Entered Subcaves 1644 | -10/Subcaves | Ambushed by angry Subdweller bent on revenge 1914 | -10/Subcaves | Learned location of Zion (-6) 1914 | -10/Subcaves | Met a Zionite searching for "candidates" 1983 | -10/Subcaves | Discovered new exit (range 15) 1987 | -10/Subcaves | Learned Materials non-interactive machine intel 2267 | -10/Subcaves | Shifting Twisted Machinery released Scrap Shield 2268 | -10/Subcaves | Shifting Twisted Machinery released Sub. Shrapnel Launcher 2789 | -10/Subcaves | Shifting Twisted Machinery released Riot Gun 2789 | -10/Subcaves | Shifting Twisted Machinery released Mak. Sword 2936 | -10/Subcaves | Visited Clippyterm 2940 | -10/Subcaves | Learned location of Section 7 (-2) 2981 | -10/Subcaves | Disturbed a concealed Subdweller 3033 | -10/Subcaves | Core integrity fell below 50% 3245 | -10/Subcaves | Discovered new exit (range 14) 3586 | -10/Subcaves | Discovered new exit (range 11) 3642 | -10/Subcaves | A swath of the cavern ceiling suddenly collapsed 4468 | -10/Subcaves | Core integrity fell below 20% 5228 | -10/Subcaves | Found SUBCON Basin 5470 | -10/Subcaves | Build established: Hauler-Mutant 5719 | -10/Subcaves | A swath of the cavern ceiling suddenly collapsed 6086 | -10/Subcaves | Entered Recycling 6181 | -7/Recycling | Destroyed by Y-54 Guardian with Gatling Laser Last Messages --------------- 05279_ Subatomizers dissect the Hrd. Light Armor Plating. 05283_ Acquired Trap Extractor. 05286_ Acquired Med. Storage Unit. 05291_ Subatomizers dissect the Sub. Machine Gun. 05298_ Acquired Signal Interpreter. A swath of the cavern ceiling suddenly collapses. 05844_ Acquired 13 matter. 05869_ Acquired 14 matter. 05962_ WR-TTZ(R): "MADSUB!" 05963_ Wheel destroyed. 05963_ WR-TTZ(R) destroyed. 05988_ Acquired 27 matter. 06009_ Acquired 56 matter. 06011_ Acquired 38 matter. 06033_ Acquired 5 matter. 06085_ Acquired 4 matter. LOCATION=UNKNOWN GOAL=ESCAPE 06159_ Y-54 Guardian springs to life. 06174_ Wheel destroyed. Map ----- +----------------------------------------------------+ | ?????????????????????????????????? ??????????????? | | ?????????????????????????????????# #?????????????? | | ?????????????????????????????????# #?????????????? | | ?????????????????????????????????# #?????????????? | | ?????????????????????????????????# #?????????????? | | ?????????????????????????????????# #?????????????? | | ?????????????????????????????????# #?????????????? | | ?????????????????????????????????# #?????????????? | | ?????????????????????????????????# ########??????? | | ?????????????????????????????????# +????? | | ?????????????????????????????????# ####"Y"#??????? | | ?????????????????????????????????# #?????????????? | | ?????????????????????????????????# #?????????????? | | ????????????????????????????######+####??????????? | | ????????????????????????????# #??????????? | | ????????????????????????????# #??????????? | | ????????????????????????????# #??????????? | | ????????????????????????????# #??????????? | | ????????????????????????????# #??????????? | | ????????????????????????????# #??????????? | | ???????????????????????????## #??????????? | | ???????????????????????????# #??????????? | | ???????????##+##### #############+######?????????? | | ?????????? % Y #?????????? | | ?????????? #?????????? | | ?????????? % @ #?????????? | | ????????????????#####!!!################?????????? | | ????????????????????#!???????????????????????????? | | ?????????????????????????????????????????????????? | | ?????????????????????????????????????????????????? | | ?????????????????????????????????????????????????? | | | | | | | | | | | | | | | | | | | | | | | | | | | | | | | | | | | | | | | +----------------------------------------------------+ Best States ------------- Heat Dissipation 25 Energy Generation 14 Energy Capacity 280 Matter Stores 300 Matter Capacity 300 Sight Range 18 Terrain Scan Density 10 Armor Coverage 150 Resistance: KI 20 Resistance: TH 20 Resistance: EX 20 Resistance: EM 20 Resistance: I 20 Resistance: S 20 Resistance: P 20 Evasion (%) 50 Recoil Reduction 2 Offensive Hacking 10 Trap Extractor Capacity 4 Item Schematics ----------------- Cargo Storage Unit | -10/Materials | Hacked Robot Schematics ------------------ None Fabricated ------------ Nothing Alien Tech Used ----------------- None Achievements -------------- None Challenges ------------ None Game ------ Seed OpticalSubdwellerGuard Manual? 0 Play Time 00:37:56 Cumulative 77.3 hours Start 2024.09.23 @ 20:51:08 End 2024.09.23 @ 21:39:41 Sessions 1 Manual Loads 0 Difficulty Adventurer Special Mode None Game No. 52 Rogue 0 Adventurer 52 Explorer 0 Win Type - Total 0 Types 0/0/0/0/0/0/0/0/0 Lore% 20 Gallery% 40 Achievement% 35 Wizard Run 0 Options --------- Layout 0 ASCII 0 Keyboard 0 Movement Mouse Keybinds 0 Fullscreen 1 Font 18/SmallcapsGlow Map View 76x50 Zoom Use 0% Tactical HUD 1 Map Filters NONE Filters NONE Steam 1 RUN: dcd8d5c0-8e16-470c-80f7-50b729cda44c